bitfinex-derivatives/quotes_SOLF0:USTF0_20260306
["timestamp","ask_amount","ask_price","bid_price","bid_amount"]
[1772774401949,3.71348901,88.078,88.031,3.83028682]
[1772774402548,0.07240689,88.063,88.038,3.83028682]
[1772774404447,0.07240689,88.063,88.041,3.83028682]
[1772774405746,3.71348901,88.089,88.044,3.83028682]
[1772774406746,3.71348901,88.079,88.043,0.07193845]
[1772774407344,3.71348901,88.069,88.031,3.83028682]
[1772774407654,3.71348901,88.059,88.001,3.83028682]
[1772774408151,3.71348901,88.05,88.001,3.83028682]
[1772774408447,3.71348901,88.049,88.001,3.83028682]
[1772774408647,3.71348901,88.049,88.021,0.07248918]
[1772774409041,3.71348901,88.048,88.021,0.07248918]
[1772774410741,3.71348901,88.048,87.968,21.23160486]
[1772774410742,3.71348901,88.029,87.986,3.83028682]
[1772774410941,2.99803829,88.02,87.971,3.83028682]
[1772774411146,3.71348901,88.019,87.971,3.83028682]
[1772774411543,2.99803829,88.01,87.971,3.83028682]
[1772774411748,3.71348901,88.009,87.959,3.83028682]
[1772774412352,3.71348901,88.008,87.959,3.83028682]
[1772774412850,3.71348901,88.005,87.959,3.83028682]
[1772774413046,3.71348901,87.999,87.959,3.83028682]
[1772774413353,6.7115273,87.99,87.947,3.83028682]
[1772774413553,3.71348901,87.99,87.947,3.83028682]
[1772774414351,2.99803829,88.0,87.948,3.83028682]
[1772774414654,2.99803829,88.0,87.951,3.83028682]
[1772774414853,6.7115273,88.0,87.951,3.83028682]
[1772774415054,3.71348901,87.999,87.951,3.83028682]
[1772774415256,2.99803829,88.01,87.951,3.83028682]
[1772774415459,2.99803829,88.01,87.961,3.83028682]
[1772774415757,3.71348901,88.011,87.971,3.83028682]
[1772774416058,3.71348901,88.029,87.971,3.83028682]
[1772774417252,3.71348901,88.025,87.974,3.83028682]
[1772774417654,2.99803829,88.02,87.974,3.83028682]
[1772774418249,3.71348901,88.038,87.98,2.99803829]
[1772774418459,3.71348901,88.029,87.981,3.83028682]
[1772774418856,3.71348901,88.029,87.981,14.05828682]
[1772774420858,0.07219183,88.014,87.981,14.05828682]
[1772774422157,0.07219183,88.014,87.982,3.83028682]
[1772774423860,3.71348901,88.009,87.97,3.83028682]
[1772774425951,3.71348901,88.009,87.972,3.83028682]
[1772774430661,3.81356027,87.999,87.948,3.8230118]
[1772774431162,3.81356027,87.999,87.94,2.99803829]
[1772774431163,3.81356027,87.999,87.949,3.8230118]
[1772774431351,20.44,88.055,87.892,159.277]
[1772774431352,2.99803829,88.01,87.961,3.8230118]
[1772774431553,3.81356027,88.009,87.961,3.8230118]
[1772774432558,3.81356027,88.009,87.962,3.8230118]
[1772774433859,3.81356027,88.009,87.966,3.8230118]
[1772774434157,3.81356027,88.019,87.966,3.8230118]
[1772774435458,3.81356027,88.019,87.969,10.23]
[1772774436055,20.44,88.055,87.966,3.8230118]
[1772774436056,3.81356027,88.009,87.966,3.8230118]
[1772774437364,0.07175023,87.996,87.966,3.8230118]
[1772774437565,0.07175023,87.996,87.968,10.23]
[1772774438366,0.07175023,87.996,87.968,14.0530118]
[1772774439667,0.07175023,87.996,87.973,10.229]
[1772774440263,3.81356027,88.009,87.976,10.229]
[1772774440565,6.8185434,88.02,87.976,10.229]
[1772774440965,3.81356027,88.019,87.976,10.229]
[1772774441668,3.81356027,88.019,87.978,10.229]
[1772774441867,0.07268027,88.006,87.978,10.229]
[1772774444566,0.07268027,88.006,87.978,14.0520118]
[1772774445864,0.07268027,88.006,87.986,3.8230118]
[1772774446568,3.81356027,88.019,87.986,3.8230118]
[1772774446970,3.81356027,88.009,87.974,3.8230118]
[1772774447170,9.33175509,88.064,87.928,20.47]
[1772774447171,3.81356027,87.999,87.94,3.00498313]
[1772774447366,3.81356027,87.999,87.941,3.8230118]
[1772774447665,3.81356027,87.999,87.928,20.47]
[1772774447666,3.81356027,88.012,87.963,3.8230118]
[1772774449371,0.07234385,87.996,87.972,10.229]
[1772774450873,0.07234385,87.996,87.978,3.8230118]
[1772774451368,3.81356027,88.019,87.978,3.8230118]
[1772774452076,3.81356027,88.016,87.965,3.8230118]
[1772774452373,3.81356027,88.009,87.965,3.8230118]
[1772774453573,0.0725485,87.996,87.966,14.0530118]
[1772774453773,0.0725485,87.996,87.967,3.8230118]
[1772774455073,0.0725485,87.996,87.971,3.8230118]
[1772774455272,8.58822541,88.019,87.971,3.8230118]
[1772774455573,3.00498313,88.02,87.971,3.8230118]
[1772774455869,8.58822541,88.019,87.971,3.8230118]
[1772774456066,3.00498313,88.02,87.971,3.8230118]
[1772774456265,8.58883274,88.019,87.971,3.8230118]
[1772774456576,3.81356027,88.019,87.975,3.8230118]
[1772774457978,3.81356027,88.019,87.96,3.00498313]
[1772774457979,3.81356027,88.017,87.969,10.23]
[1772774458278,3.81356027,88.009,87.969,10.23]
[1772774458674,3.81356027,88.009,87.963,3.8230118]
[1772774458977,3.81356027,88.009,87.984,0.07268745]
[1772774459176,3.81356027,88.007,87.984,0.07268745]
[1772774461181,3.00498313,88.01,87.984,0.07268745]
[1772774462284,6.86786205,88.01,87.984,0.07268745]
[1772774462583,3.86287892,87.999,87.956,10.231]
[1772774462780,3.00498313,87.99,87.95,3.73357733]
[1772774463081,3.86287892,87.989,87.95,3.73357733]
[1772774463679,3.86287892,87.989,87.953,10.232]
[1772774464085,3.00498313,88.0,87.954,3.73357733]
[1772774464285,3.86287892,88.001,87.965,3.73357733]
[1772774466087,0.07240154,87.992,87.965,3.73357733]
[1772774472900,0.07240154,87.992,87.954,3.73357733]
[1772774474003,0.07240154,87.992,87.958,3.73357733]
[1772774475595,0.07240154,87.992,87.963,3.73357733]
[1772774476189,3.86287892,88.001,87.963,3.73357733]
[1772774482606,3.86287892,88.001,87.965,3.73357733]
[1772774484805,3.00498313,88.0,87.965,3.73357733]
[1772774485003,3.86287892,87.999,87.965,3.73357733]
[1772774490806,0.0723293,87.991,87.965,3.73357733]
[1772774493811,0.0723293,87.991,87.958,3.8621542]
[1772774494515,3.75464202,87.991,87.958,3.8621542]
[1772774497819,0.0723293,87.991,87.96,3.8621542]
[1772774498411,3.68231272,88.002,87.96,3.8621542]
[1772774499217,0.07286397,87.99,87.961,10.231]
[1772774499417,0.07286397,87.99,87.962,3.8621542]
[1772774500318,0.07286397,87.99,87.964,3.8621542]
[1772774503226,0.07286397,87.99,87.917,28.17411444]
[1772774503227,3.68231272,88.014,87.975,3.8621542]
[1772774503524,3.68231272,88.012,87.975,3.8621542]
[1772774503719,8.59686201,88.011,87.975,3.8621542]
[1772774503915,8.59686201,88.01,87.975,3.8621542]
[1772774504120,3.68231272,88.012,87.975,3.8621542]
[1772774504319,3.00623301,88.01,87.975,3.8621542]
[1772774504923,3.68231272,88.012,87.975,3.8621542]
[1772774505125,8.59646619,88.011,87.975,3.8621542]
[1772774505323,3.68231272,88.012,87.975,3.8621542]
[1772774505627,10.32767554,88.032,87.98,3.00623301]
[1772774505628,4.66088753,88.03,87.98,3.00623301]
[1772774505824,3.00623301,88.04,87.99,3.00623301]
[1772774506029,10.32767554,88.05,87.99,3.00623301]
[1772774506030,4.66088753,88.041,87.99,3.00623301]
[1772774507628,4.66088753,88.041,87.993,10.227]
[1772774509130,3.00623301,88.05,88.001,10.226]
[1772774509530,4.79237157,88.049,88.001,10.226]
[1772774511529,10.219,88.067,87.948,20.465]
[1772774511530,4.89393407,88.066,88.01,3.00623301]
[1772774511922,3.00623301,88.03,87.98,3.00623301]
[1772774512127,4.89393407,88.029,87.97,3.00623301]
[1772774512631,4.89393407,88.029,87.979,10.229]
[1772774512930,4.89393407,88.029,87.98,3.00623301]
[1772774513432,4.89393407,88.029,87.983,10.228]
[1772774516429,4.89393407,88.029,87.98,3.00623301]
[1772774516623,4.89269954,88.019,87.974,10.229]
[1772774518431,4.89269954,88.019,87.982,10.228]
[1772774519232,3.00623301,88.03,87.99,10.227]
[1772774519532,3.00623301,88.03,87.992,0.07222278]
[1772774519832,4.89224818,88.029,87.992,0.07222278]
[1772774521732,4.89254795,88.019,87.992,0.07222278]
[1772774522234,4.89254795,88.019,87.974,10.229]
[1772774527332,3.00623301,88.0,87.944,21.23160486]
[1772774527533,4.87993944,87.989,87.94,3.00623301]
[1772774528038,7.83491508,88.0,87.94,3.00623301]
[1772774528538,3.00623301,87.99,87.956,0.07200958]
[1772774528734,4.82868207,87.989,87.956,0.07200958]
[1772774529036,4.82868207,87.989,87.94,3.00623301]
[1772774530238,4.82868207,87.989,87.956,0.07246977]
[1772774531738,4.82868207,87.989,87.957,10.231]
[1772774532940,4.83250203,87.999,87.957,10.231]
[1772774535335,4.83250203,87.999,87.956,0.07246977]
[1772774536133,4.82561764,87.989,87.956,0.07246977]
[1772774536636,4.82561764,87.989,87.949,10.232]
[1772774538336,4.82410027,88.0,87.95,3.00623301]
[1772774538933,4.82410027,88.0,87.96,0.07215294]
[1772774539641,4.82410027,88.0,87.97,10.23]
[1772774544738,7.83033328,88.0,87.96,0.07215294]
[1772774544935,4.87835943,87.999,87.96,0.07215294]
[1772774545137,4.87835943,87.989,87.96,0.07215294]
[1772774545636,4.87835943,87.989,87.94,3.00623301]
[1772774546036,4.87835943,87.989,87.966,0.07184533]
[1772774549345,4.88309967,88.001,87.966,0.07184533]
[1772774549546,4.88309967,87.999,87.966,0.07184533]
[1772774550047,4.88309967,87.989,87.943,10.233]
[1772774552948,4.88309967,87.989,87.957,0.07187261]
[1772774564154,9.3913344,88.024,87.957,0.07187261]
[1772774564455,4.91797379,88.009,87.957,0.07187261]
[1772774564756,4.91797379,88.007,87.95,3.00669838]
[1772774565055,4.91797379,88.005,87.95,3.00669838]
[1772774565459,4.91797379,88.005,87.957,10.231]
[1772774566553,4.91421107,88.003,87.949,10.232]
[1772774566759,4.91421107,87.989,87.949,10.232]
[1772774568464,4.91421107,87.989,87.96,0.07231103]
[1772774571164,4.91201476,88.012,87.96,3.07900941]
[1772774571463,4.91201476,88.029,87.98,3.00669838]
[1772774571665,4.91201476,88.027,87.98,3.00669838]
[1772774571965,8.54869136,88.026,87.98,3.00669838]
[1772774572166,3.00669838,88.02,87.96,3.00669838]
[1772774572365,4.91036043,88.009,87.96,3.00669838]
[1772774572565,4.91036043,88.009,87.962,10.231]
[1772774572764,4.91036043,88.009,87.9,194.57449632]
[1772774572765,4.91036043,87.989,87.93,3.00669838]
[1772774572959,4.91036043,87.979,87.921,21.23160486]
[1772774574164,4.91036043,87.979,87.93,3.00669838]
[1772774574558,4.91036043,87.979,87.936,10.234]
[1772774575961,4.91036043,87.979,87.927,10.235]
[1772774576160,3.00669838,87.98,87.927,10.235]
[1772774576161,4.89074048,87.969,87.927,10.235]
[1772774580071,4.89074048,87.969,87.92,3.00669838]
[1772774580270,4.89074048,87.969,87.916,10.236]
[1772774580674,4.89074048,87.969,87.936,0.07295976]
[1772774580974,4.8141587,87.949,87.889,21.23160486]
[1772774581169,4.8141587,87.949,87.89,3.00669838]
[1772774583174,4.8141587,87.949,87.9,3.00669838]
[1772774583371,4.8141587,87.949,87.91,3.00669838]
[1772774583572,4.81324755,87.969,87.91,3.00669838]
[1772774587276,4.81324755,87.969,87.888,21.23160486]
[1772774587478,4.7706007,87.959,87.91,3.00669838]
[1772774587678,4.7706007,87.959,87.9,3.00669838]
[1772774588275,10.54803047,88.005,87.857,1.97910002]
[1772774588276,4.76919827,87.939,87.88,24.23830324]
[1772774588473,9.40006841,88.002,87.848,181.78]
[1772774588474,4.76919827,87.919,87.854,21.23160486]
[1772774588677,4.76919827,87.919,87.86,3.00669838]
[1772774588982,4.76919827,87.889,87.84,3.00669838]
[1772774589773,4.76919827,87.879,87.82,3.00669838]
[1772774591681,7.79377758,87.87,87.82,3.00669838]
[1772774591881,4.7870792,87.87,87.82,3.00669838]
[1772774592276,4.61896663,87.869,87.81,3.00669838]
[1772774592476,4.61896663,87.869,87.82,3.00669838]
[1772774593176,4.61896663,87.869,87.787,1.9811788]
[1772774593177,4.61896663,87.869,87.83,3.00669838]
[1772774595285,4.61896663,87.869,87.787,1.9811788]
[1772774595485,4.61896663,87.869,87.82,3.00669838]
[1772774596991,0.07287913,87.853,87.82,3.00669838]
[1772774598885,0.07287913,87.853,87.81,3.00669838]
[1772774599391,4.61896663,87.869,87.81,3.00669838]
[1772774599591,4.55657955,87.859,87.81,3.00669838]
[1772774599791,11.36,88.002,87.777,1.9812916]
[1772774599792,4.55657955,87.869,87.82,3.00669838]
[1772774601588,0.07263411,87.853,87.82,3.00669838]
[1772774604289,8.53549001,87.949,87.84,3.00669838]
[1772774604290,4.57725855,87.884,87.84,3.00669838]
[1772774605090,4.61357561,87.899,87.86,3.00669838]
[1772774605394,4.61357561,87.919,87.87,3.00669838]
[1772774605885,4.61357561,87.909,87.86,3.00669838]
[1772774606087,23.32910874,87.993,87.777,178.9812916]
[1772774606088,4.61272266,87.889,87.83,3.00669838]
[1772774606796,4.61272266,87.879,87.83,3.00669838]
[1772774608393,4.60553565,87.904,87.86,3.00669838]
[1772774610286,8.41403133,87.969,87.777,1.9812916]
[1772774610287,4.60918038,87.929,87.87,3.00669838]
[1772774610487,4.60918038,87.929,87.88,3.00669838]
[1772774611692,4.60918038,87.929,87.87,3.00669838]
[1772774612292,4.60918038,87.929,87.88,3.00669838]
[1772774613195,10.54803047,87.996,87.777,178.9812916]
[1772774613196,4.6104495,87.969,87.91,3.00669838]
[1772774613796,4.6104495,87.969,87.93,3.00669838]
[1772774614395,4.6104495,87.969,87.92,3.00669838]
[1772774614594,4.6104495,87.969,87.9,7.51901748]
[1772774614997,4.59967718,87.999,87.9,7.51901748]
[1772774616502,4.59967718,87.999,87.91,7.51704522]
[1772774617405,4.59967718,87.999,87.86,62.0]
[1772774617607,4.59967718,87.999,87.89,7.51704522]
[1772774618004,4.59967718,87.999,87.91,7.51704522]
[1772774620003,4.59967718,87.999,87.89,7.51704522]
[1772774621706,4.59967718,87.999,87.91,7.51704522]
[1772774623404,4.59967718,87.999,87.853,21.23160486]
[1772774623605,4.59967718,87.999,87.9,7.51704522]
[1772774625404,7.51704522,88.0,87.85,69.51704522]
[1772774625405,4.66113306,87.979,87.88,7.51704522]
[1772774630316,4.66113306,87.979,87.9,7.51704522]
[1772774632715,4.66113306,87.979,87.88,7.51704522]
[1772774633812,4.68400661,87.959,87.86,7.51704522]
[1772774634008,4.68400661,87.959,87.84,7.51704522]
[1772774634208,7.51704522,87.99,87.853,10.243]
[1772774634209,4.68137019,87.914,87.853,10.243]
[1772774634712,4.68137019,87.912,87.844,10.244]
[1772774636110,4.68137019,87.912,87.869,0.07170614]
[1772774636917,4.66915771,87.91,87.869,0.07170614]
[1772774637416,4.66915771,87.91,87.844,10.244]
[1772774637618,4.66915771,87.908,87.82,7.51704522]
[1772774638319,4.66915771,87.908,87.83,10.246]
[1772774638820,4.67462348,87.906,87.824,10.247]
[1772774639118,4.67462348,87.906,87.82,7.51704522]
[1772774640118,4.67462348,87.904,87.82,7.51704522]
[1772774640414,4.67462348,87.904,87.78,7.51704522]
[1772774640415,4.67462348,87.904,87.81,7.51704522]
[1772774640614,7.69592226,87.88,87.82,3.01432435]
[1772774641019,7.69592226,87.88,87.83,3.01432435]
[1772774641814,3.01432435,87.89,87.84,3.01432435]
[1772774642512,4.67366303,87.89,87.842,10.245]
[1772774642718,4.67366303,87.903,87.85,3.01432435]
[1772774643316,3.01432435,87.9,87.85,3.01432435]
[1772774643919,7.68798738,87.9,87.842,10.245]
[1772774644516,4.67366303,87.9,87.842,10.245]
[1772774645412,4.67366303,87.9,87.862,0.07190898]
[1772774647825,14.0706823,87.964,87.862,0.07190898]
[1772774647826,4.69736286,87.918,87.862,0.07190898]
[1772774648320,4.69853855,87.913,87.849,10.244]
[1772774648824,4.69853855,87.913,87.857,10.243]
[1772774649025,4.69853855,87.91,87.82,7.5326186]
[1772774649731,4.69853855,87.897,87.82,7.5326186]
[1772774650026,4.69853855,87.894,87.828,10.246]
[1772774651227,4.71189169,87.877,87.8,7.5326186]
[1772774652630,4.71189169,87.877,87.831,10.246]
[1772774653429,4.68261537,87.896,87.838,10.245]
[1772774653628,4.68261537,87.896,87.83,0.07173601]
[1772774653829,10.24,87.883,87.833,10.246]
[1772774654036,4.68261537,87.896,87.81,7.5326186]
[1772774655135,7.5326186,87.92,87.84,10.245]
[1772774655136,4.64456951,87.891,87.84,10.245]
[1772774655735,4.64456951,87.888,87.83,10.246]
[1772774655936,4.64456951,87.888,87.81,7.5326186]
[1772774656937,4.7896472,87.877,87.828,10.246]
[1772774658941,4.79876649,87.875,87.818,10.247]
[1772774659341,4.79876649,87.875,87.844,0.07186753]
[1772774659642,10.241,87.874,87.844,0.07186753]
[1772774659939,4.79876649,87.873,87.844,0.07186753]
[1772774660339,4.8063857,87.869,87.805,10.249]
[1772774661642,8.47171258,87.918,87.784,10.251]
[1772774661643,4.8063857,87.866,87.784,10.251]
[1772774662243,4.81309331,87.857,87.784,10.251]
[1772774662938,4.81309331,87.854,87.765,10.254]
[1772774663245,173.2956823,87.922,87.432,196.3981671]
[1772774663246,4.81309331,87.839,87.74,7.5326186]
[1772774663742,7.5326186,87.84,87.74,7.5326186]
[1772774663743,4.81309331,87.825,87.754,10.255]
[1772774663942,4.81309331,87.825,87.697,20.523]
[1772774663943,4.81309331,87.825,87.697,41.59165546]
[1772774664140,4.81309331,87.825,87.73,7.5326186]
[1772774665137,4.82348602,87.813,87.743,10.256]
[1772774665542,4.82348602,87.813,87.717,1.98240332]
[1772774665743,7.5326186,87.83,87.682,182.02]
[1772774665744,4.82348602,87.811,87.735,10.257]
[1772774665943,4.82348602,87.811,87.663,20.532]
[1772774665944,4.82348602,87.789,87.707,1.98264615]
[1772774666144,4.70781559,87.769,87.67,7.5326186]
[1772774666349,4.70781559,87.764,87.683,10.263]
[1772774666547,7.5326186,87.79,87.69,7.5326186]
[1772774666745,4.70781559,87.789,87.69,7.5326186]
[1772774666944,7.5326186,87.79,87.69,7.5326186]
[1772774666945,4.70781559,87.786,87.69,7.5326186]
[1772774667145,4.70781559,87.786,87.71,7.5326186]
[1772774667846,4.70781559,87.786,87.728,10.258]
[1772774668240,4.67171804,87.809,87.738,10.257]
[1772774668749,4.67171804,87.809,87.73,7.5326186]
[1772774668945,4.67171804,87.807,87.731,10.258]
[1772774669145,4.67171804,87.807,87.73,7.5326186]
[1772774669345,4.67171804,87.803,87.741,10.256]
[1772774670446,4.70182687,87.801,87.679,159.663]
[1772774670655,4.70182687,87.801,87.72,7.5326186]
[1772774670848,4.70182687,87.801,87.728,10.258]
[1772774671849,4.70182687,87.8,87.738,10.257]
[1772774672050,4.70182687,87.8,87.74,7.5326186]
[1772774672354,4.79458272,87.829,87.74,7.5326186]
[1772774672555,4.79458272,87.822,87.762,10.254]
[1772774675251,4.79458272,87.822,87.742,10.256]
[1772774675651,4.79458272,87.822,87.74,7.5326186]
[1772774676151,5.07933523,87.819,87.752,10.255]
[1772774677657,5.07933523,87.819,87.764,10.254]
[1772774679454,5.07933523,87.819,87.75,10.255]
[1772774679861,5.07933523,87.819,87.74,7.54642862]
[1772774680361,5.07933523,87.819,87.767,10.253]
[1772774680756,159.275,87.894,87.716,20.519]
[1772774680757,5.07755134,87.835,87.78,7.54642862]
[1772774680959,5.07755134,87.835,87.792,10.25]
[1772774681458,5.07755134,87.861,87.792,10.25]
[1772774682162,5.08096095,87.853,87.783,10.252]
[1772774683157,7.54642862,87.88,87.783,10.252]
[1772774683158,5.08096095,87.851,87.783,10.252]
[1772774683460,5.08096095,87.851,87.791,10.251]
[1772774683660,5.08096095,87.847,87.78,7.54642862]
[1772774684761,0.07191343,87.822,87.78,7.54642862]
[1772774685063,0.07191343,87.822,87.799,10.25]
[1772774685661,5.18372494,87.889,87.78,7.54642862]
[1772774685863,5.18372494,87.867,87.808,10.249]
[1772774687158,5.18372494,87.867,87.8,7.54642862]
[1772774687159,5.18372494,87.867,87.817,10.248]
[1772774687364,5.17716034,87.909,87.8,7.54642862]
[1772774687756,10.239,87.887,87.825,10.247]
[1772774687962,5.17716034,87.886,87.825,10.247]
[1772774689060,5.17923526,87.884,87.825,10.247]
[1772774690156,5.16979158,87.882,87.825,10.247]
[1772774690556,5.16979158,87.882,87.8,7.54642862]
[1772774690557,5.16979158,87.882,87.816,10.248]
[1772774691167,5.16979158,87.88,87.827,10.246]
[1772774691365,5.16979158,87.88,87.8,7.54642862]
[1772774691965,5.16979158,87.878,87.824,10.247]
[1772774692167,5.16979158,87.878,87.831,0.07179391]
[1772774693163,7.54642862,87.91,87.831,0.07179391]
[1772774693164,5.16795989,87.875,87.831,0.07179391]
[1772774693668,5.16795989,87.875,87.824,10.247]
[1772774693860,5.16795989,87.872,87.814,10.248]
[1772774694667,5.13096579,87.87,87.814,10.248]
[1772774696172,5.13096579,87.87,87.822,10.247]
[1772774697876,15.35171724,87.883,87.832,10.246]
[1772774698076,15.35171724,87.883,87.837,0.0723106]
[1772774698477,5.09660482,87.882,87.84,3.01362776]
[1772774699678,5.09660482,87.882,87.843,10.245]
[1772774700476,5.09439974,87.9,87.86,3.01362776]
[1772774701376,8.49660456,87.944,87.799,20.5]
[1772774701377,5.09439974,87.911,87.87,3.01362776]
[1772774701777,10.237,87.909,87.871,0.07210406]
[1772774702175,15.33675126,87.909,87.871,0.07210406]
[1772774702583,5.09975126,87.906,87.795,21.04198494]
[1772774702784,5.09975126,87.906,87.85,3.01362776]
[1772774703388,5.06369923,87.904,87.86,3.01362776]
[1772774705991,5.08798056,87.902,87.858,10.243]
[1772774706186,5.08798056,87.902,87.782,182.04]
[1772774706187,3.01362776,87.89,87.84,3.01362776]
[1772774706391,3.01362776,87.89,87.83,3.01362776]
[1772774706392,5.08647339,87.878,87.83,3.01362776]
[1772774706589,5.08647339,87.878,87.81,7.53469489]
[1772774708092,5.08647339,87.878,87.825,10.247]
[1772774710595,5.08647339,87.878,87.81,7.53469489]
[1772774710596,5.04403168,87.874,87.817,10.248]
[1772774711489,5.04403168,87.889,87.81,7.53469489]
[1772774711695,7.53469489,87.93,87.78,7.53469489]
[1772774711696,5.04403168,87.929,87.83,7.53469489]
[1772774712294,5.04578474,87.9,87.83,7.53469489]
[1772774713195,5.04578474,87.898,87.844,10.244]
[1772774714296,5.04578474,87.896,87.844,10.244]
[1772774714495,5.04578474,87.896,87.836,10.245]
[1772774714791,5.04583469,87.87,87.79,7.53469489]
[1772774715699,5.04583469,87.87,87.815,10.248]
[1772774716596,5.04583469,87.87,87.823,10.247]
[1772774718190,5.04898903,87.867,87.813,10.248]
[1772774720001,5.04898903,87.867,87.821,10.247]
[1772774721396,5.04898903,87.867,87.813,10.248]
[1772774723197,5.05140654,87.865,87.813,10.248]
[1772774723394,5.05140654,87.865,87.82,10.247]
[1772774726502,5.05140654,87.865,87.82,13.26169879]
[1772774727700,5.05902892,87.863,87.82,3.01469879]
[1772774727906,5.05902892,87.863,87.812,10.248]
[1772774729301,5.06055413,87.86,87.812,10.248]
[1772774729708,5.06055413,87.858,87.81,3.01469879]
[1772774730208,5.06757136,87.849,87.81,3.01469879]
[1772774730403,5.06757136,87.849,87.8,3.01469879]
[1772774730606,5.06757136,87.849,87.79,3.01469879]
[1772774730806,5.06757136,87.829,87.77,3.01469879]
[1772774731911,0.07175592,87.808,87.77,3.01469879]
[1772774733899,0.07175592,87.808,87.76,3.01469879]
[1772774734104,5.16367872,87.808,87.76,3.01469879]
[1772774734509,5.0919228,87.808,87.76,3.01469879]
[1772774735702,3.01469879,87.83,87.78,3.01469879]
[1772774735905,5.07342586,87.829,87.77,3.01469879]
[1772774736108,5.07342586,87.819,87.76,3.01469879]
[1772774736410,5.02372901,87.809,87.76,3.01469879]
[1772774738106,5.02372901,87.822,87.78,3.01469879]
[1772774738707,5.04874918,87.839,87.79,3.01748531]
[1772774738907,5.04874918,87.839,87.78,3.01748531]
[1772774739708,5.04874918,87.839,87.79,3.01748531]
[1772774739903,5.04874918,87.839,87.78,3.01748531]
[1772774742115,10.51988719,87.881,87.77,3.01748531]
[1772774742116,5.06523176,87.829,87.77,3.01748531]
[1772774742309,5.06670275,87.819,87.77,3.01748531]
[1772774744515,5.06670275,87.819,87.76,3.01748531]
[1772774745218,5.06670275,87.819,87.715,21.04198494]
[1772774745219,5.06670275,87.819,87.77,3.01748531]
[1772774745617,5.07105642,87.833,87.78,3.01748531]
[1772774746616,17.80654632,87.882,87.76,3.01748531]
[1772774746617,5.06943426,87.819,87.76,3.01748531]
[1772774747515,5.06943426,87.819,87.78,3.01748531]
[1772774749113,5.06943426,87.819,87.77,3.01748531]
[1772774749814,5.06943426,87.819,87.702,182.06]
[1772774749815,5.06717619,87.833,87.78,3.01748531]
[1772774750518,5.0674871,87.829,87.77,3.01748531]
[1772774750915,14.01722852,87.885,87.702,210.2283353]
[1772774750916,5.0674871,87.819,87.76,3.01748531]
[1772774751119,5.0674871,87.809,87.75,3.01748531]
[1772774751924,5.0674871,87.809,87.76,3.01748531]
[1772774754014,5.0674871,87.809,87.71,21.12625148]
[1772774754215,5.0674871,87.809,87.76,3.01748531]
[1772774754516,5.0674871,87.809,87.77,3.01748531]
[1772774754720,5.09345538,87.829,87.78,3.01748531]
[1772774757720,5.09345538,87.829,87.79,3.01748531]
[1772774758725,5.09345538,87.829,87.78,3.01748531]
[1772774758926,5.09345538,87.829,87.79,3.01748531]
[1772774759921,5.09345538,87.829,87.703,212.31149632]
[1772774759922,5.09345538,87.829,87.78,3.01748531]
[1772774760525,5.09345538,87.829,87.77,3.01748531]
[1772774760720,5.0895368,87.819,87.76,3.01748531]
[1772774761424,5.0895368,87.819,87.702,182.06]
[1772774761425,5.0895368,87.819,87.78,3.01748531]
[1772774762429,5.09103232,87.839,87.78,3.01748531]
[1772774762728,5.09103232,87.839,87.702,182.06]
[1772774762729,5.09103232,87.839,87.79,3.01748531]
[1772774763125,5.09103232,87.839,87.8,3.01748531]
[1772774763323,5.09103232,87.839,87.79,3.01748531]
[1772774771535,5.09103232,87.839,87.8,3.01748531]
[1772774772033,5.09103232,87.839,87.81,3.01748531]
[1772774772233,5.09103232,87.839,87.8,3.01748531]
[1772774775336,5.09103232,87.839,87.81,3.01748531]
[1772774775539,5.09103232,87.839,87.8,3.01748531]
[1772774778936,5.13502623,87.859,87.8,3.01748531]
[1772774779433,5.13502623,87.859,87.82,3.01748531]
[1772774780332,5.13555573,87.892,87.84,3.01748531]
[1772774780534,5.13555573,87.879,87.82,3.01748531]
[1772774780728,5.13555573,87.869,87.82,3.01748531]
[1772774783937,5.13555573,87.869,87.81,3.01748531]
[1772774784441,5.08561499,87.867,87.801,10.249]
[1772774784640,5.08561499,87.867,87.81,3.01748531]
[1772774785640,5.08561499,87.861,87.811,10.248]
[1772774785840,5.08561499,87.861,87.82,3.01748531]
[1772774786537,5.08561499,87.861,87.81,3.01748531]
[1772774787042,5.08561499,87.861,87.81,13.26548531]
[1772774787231,5.08561499,87.861,87.81,3.01748531]
[1772774787437,5.0535829,87.849,87.8,3.01748531]
[1772774787643,0.07195182,87.844,87.8,3.01748531]
[1772774788244,0.07195182,87.844,87.81,3.01748531]
[1772774788748,5.0535829,87.849,87.81,3.01748531]
[1772774788941,5.04319752,87.879,87.83,3.01748531]
[1772774790843,3.01748531,87.88,87.784,21.12625148]
[1772774790844,5.03883026,87.876,87.82,3.01748531]